bitfinex/quotes_ETHUSD_20220311
["timestamp","ask_amount","ask_price","bid_price","bid_amount"]
[1646982089614,0.04944471,2586.2,2586.1,1.00094352]
[1646982091012,0.04944471,2586.2,2586.1,4.90094352]
[1646982091214,0.09897267,2586.2,2586.1,4.90094352]
[1646982091622,0.09897267,2586.2,2585.0,0.96666]
[1646982091623,11.88,2586.0,2585.0,0.96666]
[1646982091816,0.05342275,2585.9,2584.4,3.03035646]
[1646982092018,0.05342275,2585.9,2584.4,0.16204984]
[1646982092019,0.96691,2585.4,2584.4,0.16204984]
[1646982092315,0.04945202,2585.2,2584.2,0.387]
[1646982092558,0.04945202,2585.2,2584.3,1.05706095]
[1646982092768,0.00096,2585.4,2584.4,3.5]
[1646982092963,0.0553341,2585.6,2584.3,1.93365]
[1646982093264,0.05379661,2585.2,2584.3,1.93365]
[1646982093463,0.05379661,2585.2,2584.3,2.93365]
[1646982093865,0.05379661,2585.2,2584.6,1.10089019]
[1646982094063,0.05379661,2585.2,2584.6,1.40089019]
[1646982094666,0.96688,2585.0,2584.6,1.40089019]
[1646982095065,0.96688,2585.0,2584.6,1.4798203]
[1646982095266,0.96779,2585.4,2584.6,1.55413877]
[1646982095467,0.96683,2585.4,2584.7,0.06928646]
[1646982095867,0.96683,2585.4,2584.6,0.3]
[1646982096166,0.0450977,2585.3,2584.5,3.4602098]
[1646982096412,0.96679,2585.3,2584.7,0.96678]
[1646982096610,0.96679,2585.3,2584.5,0.5900389]
[1646982096611,0.04270467,2585.3,2584.5,0.5900389]
[1646982096816,1.93362,2585.5,2584.6,0.3]
[1646982097010,0.04984414,2585.4,2584.7,0.9632833]
[1646982097610,0.96679,2585.3,2585.1,1.07415323]
[1646982097815,0.96679,2585.3,2585.1,0.3]
[1646982098218,0.96679,2585.3,2585.0,1.3]
[1646982098817,0.96663,2585.6,2585.2,0.90712085]
[1646982099019,0.0672812,2585.7,2585.3,3.58895766]
[1646982099020,0.0149859,2585.7,2585.3,3.58895766]
[1646982099218,0.0149859,2585.7,2585.3,0.77865766]
[1646982099420,0.0149859,2585.7,2585.4,0.08424248]
[1646982099617,0.05040471,2586.2,2585.4,0.08424248]
[1646982099816,0.04944471,2586.2,2585.9,0.81111544]
[1646982100067,0.04944471,2586.2,2585.9,1.20775844]
[1646982100068,0.01498524,2586.0,2585.9,1.20775844]
[1646982100270,0.01498524,2586.0,2585.9,2.29524275]
[1646982100474,0.04944471,2586.2,2586.0,4.0]
[1646982100669,0.04944471,2586.2,2586.1,0.07202125]
[1646982101169,0.04944471,2586.2,2586.0,3.5]
[1646982101370,0.013178,2586.3,2586.0,3.5]
[1646982101571,0.013178,2586.3,2586.1,0.08500909]
[1646982101772,0.013178,2586.3,2586.1,0.54700909]
[1646982101978,0.013178,2586.3,2586.1,0.08500909]
[1646982102172,0.013178,2586.3,2586.1,2.35105909]
[1646982102472,0.015671,2586.3,2586.2,15.2053352]
[1646982102677,0.015671,2586.3,2586.2,16.6673352]
[1646982102978,0.04944471,2586.4,2586.2,17.6673352]
[1646982103178,0.04944471,2586.4,2586.3,6.39773]
[1646982103375,0.04944471,2586.4,2586.3,9.1919885]
[1646982103576,0.0173552,2586.5,2586.4,5.5]
[1646982103829,0.0173552,2586.5,2586.4,1.762]
[1646982104216,0.0173552,2586.5,2586.3,3.19773]
[1646982105216,0.0173552,2586.5,2586.3,4.19773]
[1646982105416,0.0173552,2586.5,2586.4,0.0012]
[1646982105818,0.0173552,2586.5,2586.4,1.0012]
[1646982106217,0.0173552,2586.5,2586.4,1.3012]
[1646982107222,0.0173552,2586.5,2586.4,2.23718288]
[1646982107421,0.0173552,2586.5,2586.3,4.89773]
[1646982107676,0.0173552,2586.5,2584.3,0.2912]
[1646982107677,0.0173552,2586.5,2585.9,4.0512]
[1646982107880,0.0173552,2586.5,2585.9,3.9]
[1646982108275,0.96632,2586.4,2585.9,3.9]
[1646982108473,0.0173552,2586.5,2585.9,3.9]
[1646982108474,0.05095262,2586.3,2585.9,3.9]
[1646982109277,0.05095262,2586.3,2585.9,3.6]
[1646982109474,0.04404408,2586.2,2585.9,3.6]
[1646982110775,2.94399408,2586.2,2585.9,3.6]
[1646982110975,5.84398408,2586.2,2585.9,3.6]
[1646982111178,0.96661,2586.1,2585.9,3.6]
[1646982111421,0.96661,2586.1,2585.0,3.00586271]
[1646982111422,6.93351,2585.9,2585.0,2.86766274]
[1646982111626,6.93351,2585.9,2584.8,1.3867]
[1646982111627,0.96681,2585.7,2584.8,1.3867]
[1646982111828,0.0520231,2585.5,2584.8,1.3867]
[1646982112325,0.0520231,2585.5,2585.1,0.91694131]
[1646982112524,0.96693,2585.5,2584.8,0.3867]
[1646982112725,0.96693,2585.5,2584.6,1.3897]
[1646982112726,0.96666,2585.4,2584.6,1.3897]
[1646982112926,1.02035297,2585.4,2584.6,1.38974525]
[1646982113127,1.02035297,2585.4,2584.6,0.64979229]
[1646982113337,1.02035297,2585.4,2584.7,1.0]
[1646982113728,1.02035297,2585.4,2585.0,0.00425309]
[1646982113930,0.96671,2585.3,2585.0,0.00425309]
[1646982114527,0.96671,2585.3,2584.6,1.16268105]
[1646982114728,0.96671,2585.3,2585.0,0.00425309]
[1646982114930,0.96672,2585.1,2585.0,0.91506696]
[1646982115174,0.96672,2585.1,2585.0,0.25079271]
[1646982115772,0.96672,2585.1,2585.0,0.24653962]
[1646982116374,0.96672,2585.1,2585.0,0.16453779]
[1646982116775,0.96672,2585.1,2584.9,0.30425316]
[1646982116975,0.96672,2585.1,2584.9,0.3]
[1646982117177,0.96672,2585.1,2584.9,0.00425316]
[1646982118077,0.96672,2585.1,2584.8,1.0]
[1646982118477,0.96672,2585.1,2584.9,0.00406435]
[1646982119320,0.96672,2585.1,2584.8,1.3]
[1646982119520,1.01395977,2585.1,2584.8,1.3]
[1646982119719,1.01395977,2585.1,2584.8,2.24169483]
[1646982119921,0.04723977,2585.1,2584.9,0.96665]
[1646982120121,0.04723977,2585.1,2584.8,2.24169483]
[1646982120527,0.04723977,2585.1,2584.8,1.3]
[1646982121125,0.04723977,2585.1,2584.8,5.2]
[1646982121324,1.01395977,2585.1,2584.8,5.2]
[1646982121725,1.01395977,2585.1,2584.8,6.34448459]
[1646982121924,0.04723977,2585.1,2584.8,6.34448459]
[1646982122127,0.04723977,2585.1,2584.8,6.34873412]
[1646982122562,0.04723977,2585.1,2584.8,7.31544412]
[1646982122962,0.04723977,2585.1,2584.8,7.31119459]
[1646982123362,0.04723977,2585.1,2584.8,7.31544412]
[1646982123966,0.04723977,2585.1,2584.8,6.34873412]
[1646982124167,0.10014064,2585.1,2584.8,5.2]
[1646982124468,0.04723977,2585.1,2584.8,5.20424953]
[1646982124866,0.04723977,2585.1,2584.8,6.20424953]
[1646982125268,0.06073322,2585.8,2585.0,5.5]
[1646982125472,0.00096,2586.0,2585.4,0.96645]
[1646982125772,0.00096,2586.0,2585.1,4.58078489]
[1646982125773,0.04699111,2586.1,2585.7,1.0]
[1646982125970,0.05577375,2586.4,2585.7,1.0]
[1646982126167,0.00424689,2586.4,2585.7,1.0]
[1646982126417,0.00424689,2586.4,2585.7,1.3]
[1646982126617,0.0173552,2586.5,2585.6,1.0]
[1646982126817,0.96631,2586.4,2585.7,0.96626]
[1646982127018,0.04948921,2586.3,2585.8,0.00401271]
[1646982127819,0.9664,2586.2,2585.4,1.11732626]
[1646982128019,0.04609853,2586.0,2585.8,0.00401271]
[1646982128919,0.04609853,2586.0,2585.5,2.19501756]
[1646982129320,0.04609853,2586.0,2585.8,0.00401268]
[1646982130168,0.04609853,2586.0,2585.8,1.03201385]
[1646982130371,0.04609853,2586.0,2585.8,0.00394858]
[1646982130573,0.04609853,2586.0,2585.8,0.30394858]
[1646982130971,1.97905853,2586.0,2585.8,0.30394858]
[1646982131469,1.97905853,2586.0,2585.8,0.3]
[1646982131670,1.97905853,2586.0,2585.8,0.3036203]
[1646982131871,1.97905853,2586.0,2585.8,0.0036203]
[1646982132071,1.97905853,2586.0,2585.8,0.3036203]
[1646982132477,0.04609853,2586.0,2585.8,0.3]
[1646982132878,0.04609853,2586.0,2585.8,0.0036203]
[1646982133279,0.04609853,2586.0,2585.8,1.39659386]
[1646982133682,0.96651,2586.1,2585.8,2.39297356]
[1646982133917,0.05319988,2586.3,2585.8,2.5448104]
[1646982134116,0.9836152,2586.5,2586.0,0.07230507]
[1646982134915,0.9836152,2586.5,2585.9,0.96622]
[1646982135118,0.04930751,2586.4,2586.2,1.0]
[1646982135414,0.04930751,2586.4,2586.2,1.3]
[1646982135614,0.9836152,2586.5,2586.2,1.3]
[1646982136419,0.98758159,2586.5,2586.2,2.39924567]
[1646982136821,0.05404673,2587.2,2586.3,9.20193952]
[1646982137023,2.8598711,2587.3,2586.4,1.0]
[1646982137219,2.8598711,2587.3,2586.5,3.88413075]
[1646982137420,0.0178711,2587.3,2586.6,0.20450949]
[1646982137676,0.0178711,2587.3,2586.6,0.27998751]
[1646982138069,0.0178711,2587.3,2586.7,0.96582]
[1646982138269,0.0178711,2587.3,2586.7,1.26582]
[1646982138873,0.0178711,2587.3,2586.8,1.08815048]
[1646982139072,0.0178711,2587.3,2586.8,1.17667024]
[1646982139271,0.0178711,2587.3,2586.8,0.08851976]
[1646982140472,0.0178711,2587.3,2586.7,0.3]
[1646982140678,0.06576948,2587.3,2586.7,0.3]
[1646982140872,0.06576948,2587.3,2586.3,0.31570222]
[1646982140873,0.06576948,2587.3,2586.3,0.61570222]
[1646982141071,0.01576948,2587.3,2586.4,1.0]
[1646982141517,0.00426524,2587.1,2586.7,0.00426599]
[1646982141714,0.00426524,2587.1,2586.7,0.97027599]
[1646982141914,0.00426524,2587.1,2586.8,0.07476785]
[1646982142319,0.0090031,2587.6,2586.8,0.07476785]
[1646982142519,0.0080431,2587.6,2586.9,0.07401461]
[1646982142718,0.00426528,2587.1,2587.0,1.00825134]
[1646982143322,0.00426528,2587.1,2587.0,1.30825134]
[1646982143524,0.0080431,2587.6,2587.1,0.07757145]
[1646982143722,0.00426521,2587.2,2587.1,0.07757145]
[1646982143921,0.0080431,2587.6,2587.2,4.0]
[1646982144125,0.0080431,2587.6,2587.3,0.08332914]
[1646982144322,0.0080431,2587.6,2587.3,3.58332914]
[1646982144624,0.0080431,2587.6,2587.4,1.31325122]
[1646982144823,0.0080431,2587.6,2587.5,0.07325156]
[1646982146189,0.0080431,2587.6,2587.5,5.68392904]
[1646982146389,0.0080431,2587.6,2587.5,2.18392904]
[1646982146587,0.0080431,2587.6,2587.5,3.97722904]
[1646982147588,0.0080431,2587.6,2587.5,4.43922904]
[1646982147789,0.0080431,2587.6,2587.5,7.93922904]
[1646982147991,0.0080431,2587.6,2587.5,4.59762904]
[1646982148189,0.0080431,2587.6,2587.5,7.08882904]
[1646982148390,0.00424756,2587.8,2587.6,17.7697]
[1646982148589,0.00424756,2587.8,2587.7,1.67361429]
[1646982148822,0.00424756,2587.8,2587.7,1.82161429]
[1646982149024,0.00424756,2587.8,2587.7,1.67361429]
[1646982149627,0.00542836,2587.8,2587.7,1.67361429]
[1646982150427,0.00542836,2587.8,2587.7,2.67361429]
[1646982151235,0.00542836,2587.8,2587.7,1.0]
[1646982151628,0.96582,2587.6,2587.4,0.16914275]
[1646982152226,0.96582,2587.6,2587.4,1.23161366]
[1646982152427,0.96582,2587.6,2587.4,2.23161366]
[1646982152671,0.00542836,2587.6,2587.4,3.49728366]
[1646982152871,0.00542836,2587.6,2587.4,14.76698366]
[1646982153071,0.00542836,2587.6,2587.4,15.76698366]
[1646982153268,0.00542836,2587.6,2587.4,3.49728366]
[1646982153470,0.00542836,2587.6,2587.4,7.39728366]
[1646982153770,0.00941896,2587.6,2587.4,7.39728366]
[1646982154069,0.00941896,2587.6,2587.5,1.0]
[1646982154469,0.00542836,2587.6,2587.5,1.0]
[1646982154672,0.00789686,2587.6,2587.5,1.0]
[1646982154871,0.00789686,2587.6,2587.5,16.7697]
[1646982155072,0.00789686,2587.6,2587.5,14.8909]
[1646982155270,0.01095358,2587.6,2587.5,15.8893]
[1646982155571,0.0251768,2587.9,2587.6,19.70045]
[1646982155770,0.0251768,2587.9,2587.7,12.342]
[1646982155971,0.0251768,2587.9,2587.7,12.7078895]
[1646982156171,0.0251768,2587.9,2587.8,13.53983297]
[1646982156414,0.0520903,2588.2,2587.9,4.0]
[1646982156714,0.0520903,2588.2,2587.8,2.72736]
[1646982156915,0.0520903,2588.2,2587.8,1.26536]
[1646982157117,0.0520903,2588.2,2587.8,0.3]
[1646982157321,0.0520903,2588.2,2587.7,0.5146895]
[1646982157516,0.0520903,2588.2,2587.8,1.0]
[1646982157916,0.0520903,2588.2,2587.7,0.5146895]
[1646982158118,0.0520903,2588.2,2587.7,1.4803295]
[1646982158318,0.00247544,2588.1,2587.7,1.4803295]
[1646982158717,0.04092649,2588.0,2587.7,1.4803295]
[1646982159117,0.04035806,2587.9,2587.7,1.4803295]
[1646982159718,0.04035806,2587.9,2587.8,2.93092]
[1646982160761,0.04035806,2587.9,2587.8,1.0]
[1646982161366,0.04035806,2587.9,2587.5,1.168542]
[1646982161367,0.04035806,2587.9,2587.4,3.9]
[1646982161964,0.96589,2587.8,2587.4,3.9]
[1646982162169,0.04378854,2587.6,2587.4,3.9]
[1646982162571,0.04378854,2587.6,2587.4,0.0001]
[1646982163826,1.00973854,2587.6,2587.4,0.0001]
[1646982166423,0.96595,2587.6,2587.4,0.0001]
[1646982166624,1.1481,2587.8,2587.4,0.0001]
[1646982167023,0.00430238,2587.7,2587.4,0.0001]
[1646982167222,0.00430238,2587.7,2587.5,1.0]
[1646982167423,0.00430238,2587.7,2587.5,0.16895695]
[1646982167672,0.04035806,2587.9,2587.5,0.16895695]
[1646982167871,1.01478127,2587.8,2587.5,0.16895695]
[1646982168067,0.00430247,2587.7,2587.5,0.16895695]
[1646982168869,0.96582,2587.8,2587.5,0.16895695]
[1646982169069,0.96582,2587.8,2587.4,0.0001]
[1646982169269,0.96599,2587.6,2587.4,0.0001]
[1646982169668,0.96599,2587.6,2587.5,0.02841903]
[1646982169869,0.00415726,2587.7,2587.5,0.02841903]
[1646982170073,0.00415726,2587.7,2587.5,0.20085031]
[1646982170271,0.96582,2587.8,2587.5,0.20085031]
[1646982170474,0.00415722,2587.7,2587.5,0.50085031]
[1646982171073,0.00415722,2587.7,2587.6,1.0]
[1646982171324,0.96582,2587.8,2587.6,1.0]
[1646982171812,0.00415726,2587.7,2587.6,1.0]
[1646982172613,0.96582,2587.8,2587.6,1.0]
[1646982172817,0.96582,2587.8,2587.5,1.37377103]
[1646982172818,0.00399752,2587.8,2587.5,2.33952103]
[1646982173022,0.00399752,2587.8,2587.7,1.0]
[1646982173817,0.00399752,2587.8,2587.7,1.3]
[1646982174116,0.04035806,2587.9,2587.8,1.04437818]
[1646982174117,0.04435552,2587.9,2587.8,1.04437818]
[1646982174919,0.04035806,2587.9,2587.8,0.07877818]
[1646982175161,0.04035806,2587.9,2587.8,1.07877818]
[1646982175365,0.04035806,2587.9,2587.8,1.37877818]
[1646982175567,0.04035806,2587.9,2587.8,1.3]
[1646982178371,0.04035806,2587.9,2587.8,2.26553]
[1646982178574,0.04035806,2587.9,2587.8,3.26553]
[1646982181313,0.04035806,2587.9,2587.8,2.3]
[1646982183373,0.04035806,2587.9,2587.8,3.26554]
[1646982183970,0.04035806,2587.9,2587.8,3.65524]
[1646982184168,0.04035806,2587.9,2587.8,3.26554]
[1646982186072,0.03939847,2587.9,2587.8,3.26554]
[1646982187528,0.03939847,2587.9,2587.8,3.65524]
[1646982187930,0.03939847,2587.9,2587.8,3.26554]
[1646982188332,0.03939847,2587.9,2587.8,3.65524]
[1646982188535,0.03939847,2587.9,2587.8,3.26554]
[1646982190267,0.00400393,2588.0,2587.8,3.26554]
[1646982190466,0.00400393,2588.0,2587.6,0.25]
[1646982190668,1.93173,2588.0,2587.6,0.25]
[1646982190867,1.98264262,2588.0,2587.6,0.25]
[1646982191471,1.01147192,2587.9,2587.6,0.25]
[1646982191871,1.01147192,2587.9,2587.4,0.0001]
[1646982191872,0.04828909,2587.7,2587.4,0.0001]
[1646982192070,15.89444909,2587.7,2587.4,0.0001]
[1646982192271,0.048413,2587.5,2587.4,0.0001]
[1646982193679,0.96616,2587.6,2587.4,0.0001]
[1646982194518,0.04522796,2587.5,2587.4,0.0001]
[1646982196519,3.04522796,2587.5,2587.4,0.0001]
[1646982196719,1.04522796,2587.5,2587.4,0.0001]
[1646982197119,0.04522796,2587.5,2587.4,0.0001]
[1646982204720,0.96599,2587.6,2587.4,0.0001]
[1646982205165,1.01829504,2587.6,2587.4,0.0001]
[1646982205770,0.00400163,2587.7,2587.4,0.0001]
[1646982206571,0.0477592,2587.9,2587.4,0.0001]
[1646982206768,0.0040005,2587.7,2587.4,0.0001]
[1646982207170,0.0040005,2587.7,2587.4,0.57058172]
[1646982207371,0.0040005,2587.7,2587.6,0.89283484]
[1646982207670,0.0040005,2587.7,2587.4,0.3001]
[1646982207871,0.018554,2588.1,2587.4,0.0001]
[1646982208070,0.13731467,2588.3,2588.2,0.09890056]
[1646982208270,0.02081467,2588.3,2588.2,0.09890056]
[1646982208473,4.9370252,2588.4,2588.2,0.09890056]
[1646982208670,1.93164,2588.3,2588.2,0.09890056]
[1646982208917,5.9028352,2588.4,2588.2,0.09890056]
[1646982208918,3.5488415,2588.4,2588.2,0.09890056]
[1646982209120,2.5830315,2588.4,2588.2,0.09890056]
[1646982209320,2.58703755,2588.4,2588.2,0.09890056]
[1646982210119,0.0327852,2588.4,2588.3,0.6992]
[1646982210318,0.0327852,2588.4,2588.3,0.9992]
[1646982210520,0.04224059,2588.4,2588.3,0.9992]
[1646982211623,0.04224059,2588.4,2588.2,0.09890056]
[1646982212021,0.00758931,2588.5,2588.2,0.09890056]
[1646982212022,0.04167217,2588.3,2588.2,0.09890056]
[1646982213872,0.96500148,2588.5,2588.2,0.09890056]
[1646982214074,0.96929961,2588.5,2588.2,0.09890056]
[1646982214777,0.96929961,2588.5,2588.2,3.99890056]
[1646982214974,1.0481508,2588.7,2588.2,4.29890056]
[1646982215175,1.0290136,2588.8,2588.4,0.08329745]
[1646982215375,0.00429823,2588.5,2588.4,0.08329745]
[1646982215575,0.00429823,2588.5,2588.4,3.58329745]
[1646982215875,0.00429823,2588.5,2588.4,0.38329745]
[1646982216516,0.00429823,2588.5,2588.4,1.45118816]
[1646982216720,0.0290136,2588.8,2588.5,0.07332748]
[1646982216721,0.00429824,2588.6,2588.5,0.07332748]
[1646982216919,0.00429824,2588.6,2588.5,1.03864748]
[1646982217519,0.0290136,2588.8,2588.6,0.08035474]
[1646982217719,0.00429817,2588.7,2588.6,0.08035474]
[1646982218521,0.00429817,2588.7,2588.6,0.77955474]
[1646982218722,0.0290136,2588.8,2588.6,1.07955474]
[1646982218920,0.0333117,2588.8,2588.7,0.07391771]
[1646982219121,0.0333117,2588.8,2588.7,0.26446245]
[1646982219922,0.0290136,2588.8,2588.7,0.26446245]
[1646982222673,0.0290136,2588.8,2588.7,0.11446245]
[1646982223174,0.0290136,2588.8,2588.7,1.12944474]
[1646982226014,0.0143657,2589.1,2588.7,1.12944474]
[1646982226015,0.0143657,2589.1,2588.9,0.3897]
[1646982226217,0.0143657,2589.1,2589.0,0.96505]
[1646982226416,0.0143657,2589.1,2589.0,1.5464469]
[1646982226915,6.57e-05,2589.1,2589.0,15.22454642]
[1646982227117,0.0175413,2589.5,2589.2,0.3897]
[1646982227318,0.0098629,2589.6,2589.4,3.8897]
[1646982227588,0.0098629,2589.6,2589.4,16.26264925]
[1646982227797,0.0098629,2589.6,2589.5,13.9689]
[1646982227989,0.0098629,2589.6,2589.5,2.5509]
[1646982228188,0.007968,2589.9,2589.5,3.54616493]
[1646982228388,0.007968,2589.9,2589.5,2.08416493]
[1646982228588,0.00246609,2589.7,2589.5,1.69446493]
[1646982229188,0.00246609,2589.7,2589.5,0.99609981]
[1646982229388,0.007968,2589.9,2589.5,0.99609981]
[1646982229588,0.007968,2589.9,2589.4,0.49294925]
[1646982229789,0.0043008,2589.7,2589.4,0.49294925]
[1646982230487,0.0122688,2589.7,2589.6,0.84341329]
[1646982230688,0.007968,2589.7,2589.6,0.84341329]
[1646982231089,0.01226884,2589.7,2589.6,0.3]
[1646982231328,0.01226884,2589.7,2589.4,0.49294925]
[1646982231918,0.007968,2589.7,2589.4,0.49294925]
[1646982232322,0.01226884,2589.7,2589.5,0.92135039]
[1646982232926,0.04583496,2589.6,2589.5,0.92135039]
[1646982233122,0.04583496,2589.6,2589.5,1.39393311]
[1646982233321,0.04583496,2589.6,2589.5,2.39393311]
[1646982233526,0.05380296,2589.6,2589.5,2.39393311]
[1646982233822,0.05380296,2589.6,2589.5,2.38965783]
[1646982234026,0.05380296,2589.6,2589.5,1.99995783]
[1646982234225,0.05380296,2589.6,2589.5,6.89995783]
[1646982236576,0.05380296,2589.6,2589.5,23.27725783]
[1646982236776,0.05380296,2589.6,2589.5,20.78285783]
[1646982237173,0.00415568,2589.7,2589.6,16.2697]
[1646982237375,0.02009168,2589.7,2589.6,18.96076]
[1646982237575,0.02009168,2589.7,2589.6,19.96076]
[1646982238081,0.02009168,2589.7,2589.6,20.96076]
[1646982238082,0.015936,2589.7,2589.6,20.96076]
[1646982238477,0.08968794,2590.4,2589.9,5.8897]
[1646982238679,0.08872794,2590.4,2590.3,1.0]
[1646982238914,0.08872794,2590.4,2590.3,1.17424263]
[1646982239113,0.0288053,2590.4,2590.3,1.17424263]
[1646982239317,0.0437418,2590.6,2590.4,5.0]
[1646982239514,0.0437418,2590.6,2590.4,3.35307409]
[1646982239715,0.0068772,2590.7,2590.5,9.3897]
[1646982239915,0.0701798,2590.9,2590.7,5.8897]
[1646982240114,0.0701798,2590.9,2590.8,0.8517]
[1646982240115,0.0839342,2590.9,2590.8,0.8517]
[1646982240313,0.0839342,2590.9,2590.8,0.762]
[1646982240513,0.0839342,2590.9,2590.8,0.3]
[1646982240720,0.0839342,2590.9,2590.6,0.17888814]
[1646982240721,0.08639392,2590.9,2590.7,0.96445]
[1646982240915,0.08639392,2590.9,2590.7,1.0]
[1646982241114,0.08639392,2590.9,2590.7,2.3]
[1646982241315,0.08639392,2590.9,2590.8,0.3897]
[1646982241615,0.08639392,2590.9,2590.6,0.47888814]
[1646982241616,0.0839342,2590.9,2590.6,0.47888814]
[1646982241817,0.08823339,2590.9,2590.6,0.47888814]
[1646982242018,0.08823339,2590.9,2590.6,1.44329814]
[1646982242217,0.08823339,2590.9,2590.8,2.0]
[1646982242674,0.08823339,2590.9,2590.8,2.3]
[1646982242871,0.0839342,2590.9,2590.8,2.3]
[1646982243974,0.0839342,2590.9,2590.8,5.8]
[1646982244172,0.0839342,2590.9,2590.8,2.3]
[1646982244772,0.0839342,2590.9,2590.8,5.2]
[1646982246419,0.0839342,2590.9,2590.8,6.2]
[1646982246821,0.02955194,2591.2,2591.0,4.5]
[1646982247019,0.02955194,2591.2,2591.1,3.5]
[1646982247218,0.0196479,2591.3,2591.0,4.9332]
[1646982247520,0.0181261,2592.0,2591.4,12.2697]
[1646982247723,0.0171661,2592.0,2591.9,1.0]
[1646982247922,0.0171661,2592.0,2591.9,1.07358876]
[1646982248121,0.0171661,2592.0,2591.9,2.37358876]
[1646982248325,0.0171661,2592.0,2591.9,2.07358876]
[1646982248723,0.0171661,2592.0,2591.9,1.07358876]
[1646982249121,0.0171661,2592.0,2591.9,0.07358876]
[1646982249325,0.0171661,2592.0,2591.9,1.10575262]
[1646982249724,0.0171661,2592.0,2591.9,1.18004131]
[1646982249923,0.0171661,2592.0,2591.9,1.48004131]
[1646982250174,0.0171661,2592.0,2591.9,2.40575262]
[1646982250974,0.0171661,2592.0,2591.9,14.28575262]
[1646982251381,0.0387836,2592.4,2592.0,17.38]
[1646982251382,0.0365647,2592.4,2592.0,17.38]
[1646982251574,0.00411653,2592.1,2592.0,17.7697]
[1646982251775,0.00411653,2592.1,2592.0,20.2317]
[1646982251973,0.00411653,2592.1,2592.0,21.3917]
[1646982252175,0.00411653,2592.1,2592.0,22.35941]
[1646982252375,0.0182479,2592.8,2592.2,12.2697]
[1646982252575,0.0172879,2592.8,2592.4,12.2697]
[1646982252780,0.0172879,2592.8,2592.4,14.0317]
[1646982252781,0.04499827,2592.6,2592.4,14.0317]
[1646982252981,0.0172879,2592.8,2592.5,0.1576]
[1646982253183,0.0291388,2593.1,2592.8,11.88]
[1646982253383,0.0291388,2593.1,2592.9,0.96352]
[1646982253582,0.0291388,2593.1,2592.9,13.91239751]
[1646982253835,0.0291388,2593.1,2592.9,16.4323262]
[1646982254017,0.0291388,2593.1,2592.9,4.5523262]
[1646982254218,0.03881648,2593.0,2592.9,8.4523262]
[1646982255417,0.03881648,2593.0,2592.9,20.3323262]
[1646982256725,0.03881648,2593.0,2592.9,20.7220262]
[1646982257024,0.03881648,2593.0,2592.9,8.4523262]
[1646982257225,0.03881648,2593.0,2592.9,20.7220262]
[1646982257424,0.04121648,2593.0,2592.9,20.7220262]
[1646982257672,0.04121648,2593.0,2592.9,20.3323262]
[1646982257875,0.04121648,2593.0,2592.9,20.7220262]
[1646982258073,0.04121648,2593.0,2592.9,20.3335262]
[1646982258473,0.04121648,2593.0,2592.9,20.35787292]
[1646982258874,0.0247237,2593.1,2592.9,20.35787292]
[1646982259078,0.0247237,2593.1,2592.9,5.44547541]
[1646982259274,0.0247237,2593.1,2592.9,5.14547541]
[1646982259473,0.0247237,2593.1,2593.0,1.0]
[1646982259674,0.02035528,2593.1,2593.0,1.0]
[1646982259874,0.02035528,2593.1,2593.0,2.0]
[1646982259875,0.03502093,2593.1,2593.0,2.0]
[1646982260075,0.03938931,2593.1,2593.0,2.0]
[1646982260875,0.03502093,2593.1,2593.0,2.0]
[1646982261725,0.03502093,2593.1,2592.9,3.22835226]
[1646982261920,0.99894093,2593.1,2592.9,3.22835226]
[1646982262120,0.99894093,2593.1,2593.0,0.0012]
[1646982263325,0.99894093,2593.1,2592.9,3.52835226]
[1646982263525,1.96280093,2593.1,2592.9,4.52835226]
[1646982264125,0.99894093,2593.1,2592.9,4.52835226]
[1646982264332,0.03502093,2593.1,2592.9,4.71691291]
[1646982264527,0.03502093,2593.1,2592.9,5.69009322]
[1646982264928,0.03907677,2593.1,2592.9,5.69009322]
[1646982265169,0.03907677,2593.1,2592.9,18.57009322]
[1646982265369,0.03907677,2593.1,2592.9,6.69009322]
[1646982265772,0.03502093,2593.1,2592.9,6.69009322]
[1646982265969,0.03907677,2593.1,2592.9,6.69009322]
[1646982266974,0.03907677,2593.1,2592.9,5.69009322]
[1646982266975,0.03502093,2593.1,2592.9,5.69009322]
[1646982267171,0.03907677,2593.1,2592.9,6.69009322]
[1646982268178,0.0195766,2593.6,2593.1,1.0]
[1646982268374,0.0195766,2593.6,2593.1,13.18]
[1646982268375,0.0162501,2593.5,2593.1,13.18]
[1646982268574,0.0162501,2593.5,2593.1,1.3]
[1646982269226,0.0162501,2593.5,2593.1,3.22672]
[1646982269529,0.0195766,2593.6,2593.1,1.3]
[1646982269727,0.4070766,2593.6,2593.1,1.3]
[1646982269930,0.4070766,2593.6,2593.4,1.17792333]
[1646982270129,0.4070766,2593.6,2593.4,1.47792333]
[1646982270330,0.96366,2593.5,2593.4,1.47792333]
[1646982272229,0.41144358,2593.6,2593.4,1.47792333]
[1646982272428,0.41144358,2593.6,2593.5,0.06967798]
[1646982272875,0.4070766,2593.6,2593.5,1.06967798]
[1646982273674,0.4070766,2593.6,2593.5,2.06967798]
[1646982274575,0.4070766,2593.6,2593.5,2.07260735]
[1646982274772,0.0894562,2593.6,2593.5,2.00292937]
[1646982277226,0.0894562,2593.6,2593.5,1.00292937]
[1646982277424,0.0894562,2593.6,2593.5,1.00412937]
[1646982278634,6.8005292,2594.6,2593.7,4.0]
[1646982278831,3.9008252,2595.0,2593.9,5.5]
[1646982278832,0.0197049,2594.9,2593.9,5.5]
[1646982279033,0.0636135,2595.1,2594.0,40.74277147]
[1646982279230,0.0064808,2595.0,2594.1,5.5]
[1646982279431,0.0064808,2595.0,2594.5,0.01253853]
[1646982279630,0.0064808,2595.0,2594.6,0.462]
[1646982279834,0.0064808,2595.0,2594.9,1.17895482]
[1646982280071,0.0064808,2595.0,2594.9,2.17895482]
[1646982280272,0.0064808,2595.0,2594.9,2.47895482]
[1646982280677,0.0064808,2595.0,2594.9,1.47895482]
[1646982280871,0.0064808,2595.0,2594.9,0.51628482]
[1646982281074,0.0064808,2595.0,2594.9,0.21628482]
[1646982281476,0.0064808,2595.0,2594.1,0.1914085]
[1646982281675,0.96349,2594.8,2594.1,0.1914085]
[1646982281876,3.5,2594.7,2593.4,0.0012]
[1646982282075,0.99999022,2594.4,2593.5,0.96647937]
[1646982282879,0.99999022,2594.4,2593.5,0.00292937]
[1646982283080,0.0064808,2594.4,2594.0,0.00217757]
[1646982284527,0.00761919,2594.4,2594.0,0.00192402]
[1646982284728,1.00621165,2594.4,2594.0,0.00192402]
[1646982284928,1.00621165,2594.4,2594.0,0.07344642]